[Event "Live Chess"]
[Site "Chess.com"]
[Date "2023.05.21"]
[Round "-"]
[White "Crowded_House"]
[Black "martynstanley"]
[Result "1-0"]
[WhiteElo "1664"]
[BlackElo "1015"]
[TimeControl "300"]
[EndTime "2:41:06 PDT"]
[Termination "Crowded_House won by checkmate"]

1. d4 {[%clk 0:04:59]} 1... e6 {[%clk 0:04:58.8]} 2. Nf3 {[%clk 0:04:56.5]} 2...
d5 {[%clk 0:04:58]} 3. Bg5 {[%clk 0:04:55.2]} 3... f6 {[%clk 0:04:56.7]} 4. Bh4
{[%clk 0:04:53.8]} 4... c5 {[%clk 0:04:55.7]} 5. c3 {[%clk 0:04:49]} 5... Nc6
{[%clk 0:04:54.6]} 6. e3 {[%clk 0:04:46.9]} 6... Qa5 {[%clk 0:04:52.3]} 7. Nbd2
{[%clk 0:04:43.3]} 7... cxd4 {[%clk 0:04:48.3]} 8. Nb3 {[%clk 0:04:35.5]} 8...
Qb6 {[%clk 0:04:40.5]} 9. Nfxd4 {[%clk 0:04:26.7]} 9... Nxd4 {[%clk 0:04:38.2]}
10. Qxd4 {[%clk 0:04:24.6]} 10... Qxd4 {[%clk 0:04:36.5]} 11. Nxd4 {[%clk
0:04:24.2]} 11... e5 {[%clk 0:04:35.7]} 12. Nb5 {[%clk 0:04:18.1]} 12... Kd7
{[%clk 0:04:32.3]} 13. Be2 {[%clk 0:04:10.2]} 13... a6 {[%clk 0:04:31.4]} 14.
Bg4+ {[%clk 0:04:08.3]} 14... Kc6 {[%clk 0:04:26.4]} 15. Bxc8 {[%clk 0:04:03.2]}
15... Rxc8 {[%clk 0:04:24.9]} 16. Na3 {[%clk 0:03:57.4]} 16... g5 {[%clk
0:04:22]} 17. Bg3 {[%clk 0:03:54.3]} 17... Ne7 {[%clk 0:04:20.2]} 18. O-O {[%clk
0:03:44.9]} 18... Kd7 {[%clk 0:04:19.4]} 19. Rac1 {[%clk 0:03:34.5]} 19... Bg7
{[%clk 0:04:17.4]} 20. c4 {[%clk 0:03:21.3]} 20... Rc7 {[%clk 0:04:12.8]} 21.
cxd5 {[%clk 0:03:18.6]} 21... Rxc1 {[%clk 0:04:11.5]} 22. Rxc1 {[%clk
0:03:17.9]} 22... Rc8 {[%clk 0:04:10.6]} 23. Rxc8 {[%clk 0:03:15.6]} 23... Kxc8
{[%clk 0:04:09.5]} 24. e4 {[%clk 0:03:12.7]} 24... Kd7 {[%clk 0:04:07.9]} 25.
Kf1 {[%clk 0:03:01.5]} 25... Kd6 {[%clk 0:04:07]} 26. Ke2 {[%clk 0:02:50.4]}
26... h5 {[%clk 0:04:06]} 27. f3 {[%clk 0:02:45.7]} 27... h4 {[%clk 0:04:04.8]}
28. Bf2 {[%clk 0:02:44.8]} 28... Nc8 {[%clk 0:03:59.8]} 29. Nc4+ {[%clk
0:02:40.3]} 29... Kd7 {[%clk 0:03:57.1]} 30. Kd3 {[%clk 0:02:36.9]} 30... Bf8
{[%clk 0:03:55.7]} 31. Nb6+ {[%clk 0:02:27.3]} 31... Kc7 {[%clk 0:03:52.8]} 32.
Nxc8 {[%clk 0:02:24.3]} 32... Kxc8 {[%clk 0:03:51.3]} 33. a4 {[%clk 0:02:18.2]}
33... Kc7 {[%clk 0:03:50.2]} 34. Kc4 {[%clk 0:02:14.1]} 34... b6 {[%clk
0:03:48.4]} 35. b4 {[%clk 0:02:09.1]} 35... Bd6 {[%clk 0:03:44.9]} 36. b5 {[%clk
0:02:04.8]} 36... axb5+ {[%clk 0:03:42.3]} 37. Kxb5 {[%clk 0:02:01.6]} 37... Bc5
{[%clk 0:03:24.2]} 38. Bxc5 {[%clk 0:01:59.5]} 38... bxc5 {[%clk 0:03:23.4]} 39.
Kxc5 {[%clk 0:01:59.1]} 39... Kb7 {[%clk 0:03:21.7]} 40. Kd6 {[%clk 0:01:53.7]}
40... f5 {[%clk 0:03:20.4]} 41. Kxe5 {[%clk 0:01:49.4]} 41... fxe4 {[%clk
0:03:18.6]} 42. fxe4 {[%clk 0:01:46.4]} 42... g4 {[%clk 0:03:17.9]} 43. Kf4
{[%clk 0:01:44]} 43... g3 {[%clk 0:03:17.2]} 44. hxg3 {[%clk 0:01:42.6]} 44...
hxg3 {[%clk 0:03:16.1]} 45. Kxg3 {[%clk 0:01:42.2]} 45... Kc7 {[%clk 0:03:15.6]}
46. Kf4 {[%clk 0:01:39.5]} 46... Kd6 {[%clk 0:03:15]} 47. g4 {[%clk 0:01:37.4]}
47... Ke7 {[%clk 0:03:14.4]} 48. Ke5 {[%clk 0:01:35.5]} 48... Kd7 {[%clk
0:03:13.3]} 49. g5 {[%clk 0:01:34.1]} 49... Ke7 {[%clk 0:03:12.6]} 50. g6 {[%clk
0:01:30.8]} 50... Kf8 {[%clk 0:03:11.7]} 51. Kf6 {[%clk 0:01:28.6]} 51... Kg8
{[%clk 0:03:10.6]} 52. a5 {[%clk 0:01:28.1]} 52... Kf8 {[%clk 0:03:09.8]} 53. a6
{[%clk 0:01:27.5]} 53... Ke8 {[%clk 0:03:09.2]} 54. a7 {[%clk 0:01:26.5]} 54...
Kd7 {[%clk 0:03:08.7]} 55. a8=R {[%clk 0:01:22.8]} 55... Kc7 {[%clk 0:03:08.1]}
56. g7 {[%clk 0:01:19.6]} 56... Kd6 {[%clk 0:03:07]} 57. g8=R {[%clk 0:01:13.9]}
57... Kc5 {[%clk 0:03:06.7]} 58. Rgc8+ {[%clk 0:01:11.9]} 58... Kd4 {[%clk
0:03:05.9]} 59. d6 {[%clk 0:01:10.4]} 59... Kxe4 {[%clk 0:03:05]} 60. d7 {[%clk
0:01:09.8]} 60... Ke3 {[%clk 0:03:04.2]} 61. d8=Q {[%clk 0:01:07.9]} 61... Kf4
{[%clk 0:03:04.1]} 62. Rc4+ {[%clk 0:01:06.1]} 62... Kg3 {[%clk 0:03:02.5]} 63.
Qd3+ {[%clk 0:01:04.9]} 63... Kg2 {[%clk 0:02:59.9]} 64. Rc2+ {[%clk 0:01:04.4]}
64... Kg1 {[%clk 0:02:57.5]} 65. Qd1# {[%clk 0:01:04]} 1-0

[Event "Live Chess"]
[Site "Chess.com"]
[Date "2023.05.21"]
[Round "-"]
[White "LiamClery2020"]
[Black "JackCheetham1"]
[Result "1-0"]
[WhiteElo "1986"]
[BlackElo "1704"]
[TimeControl "300"]
[EndTime "2:41:46 PDT"]
[Termination "LiamClery2020 won by resignation"]

1. e4 {[%clk 0:04:59.2]} 1... d6 {[%clk 0:04:58.8]} 2. d4 {[%clk 0:04:57.7]}
2... Nf6 {[%clk 0:04:58]} 3. Nc3 {[%clk 0:04:56.5]} 3... g6 {[%clk 0:04:57.4]}
4. f3 {[%clk 0:04:55.5]} 4... Bg7 {[%clk 0:04:56.9]} 5. Be3 {[%clk 0:04:55.1]}
5... O-O {[%clk 0:04:56.4]} 6. Qd2 {[%clk 0:04:54.7]} 6... Nbd7 {[%clk
0:04:55.9]} 7. Bh6 {[%clk 0:04:54]} 7... e5 {[%clk 0:04:55.1]} 8. Bxg7 {[%clk
0:04:53.2]} 8... Kxg7 {[%clk 0:04:55]} 9. Nge2 {[%clk 0:04:52.5]} 9... exd4
{[%clk 0:04:53.9]} 10. Nxd4 {[%clk 0:04:52]} 10... Re8 {[%clk 0:04:51.8]} 11.
O-O-O {[%clk 0:04:51.3]} 11... Qe7 {[%clk 0:04:49.6]} 12. Qg5 {[%clk 0:04:49.5]}
12... h6 {[%clk 0:04:48.1]} 13. Nf5+ {[%clk 0:04:47.7]} 13... Kh7 {[%clk
0:04:42.2]} 14. Qxh6+ {[%clk 0:04:46.7]} 1-0

[Event "Live Chess"]
[Site "Chess.com"]
[Date "2023.05.21"]
[Round "-"]
[White "CheckThis4"]
[Black "EdenHazard8"]
[Result "1-0"]
[WhiteElo "2495"]
[BlackElo "1976"]
[TimeControl "300"]
[EndTime "2:41:50 PDT"]
[Termination "CheckThis4 won on time"]

1. d4 {[%clk 0:04:54.4]} 1... Nf6 {[%clk 0:04:58.7]} 2. Nf3 {[%clk 0:04:46]}
2... e6 {[%clk 0:04:54.8]} 3. c4 {[%clk 0:04:42.7]} 3... d5 {[%clk 0:04:53.6]}
4. g3 {[%clk 0:04:39.4]} 4... dxc4 {[%clk 0:04:51.2]} 5. Bg2 {[%clk 0:04:36.8]}
5... Bb4+ {[%clk 0:04:50.3]} 6. Bd2 {[%clk 0:04:30.7]} 6... a5 {[%clk 0:04:49]}
7. O-O {[%clk 0:04:28.7]} 7... O-O {[%clk 0:04:46.8]} 8. a3 {[%clk 0:04:23.5]}
8... Bxd2 {[%clk 0:04:45.6]} 9. Nbxd2 {[%clk 0:04:21.6]} 9... b5 {[%clk
0:04:44.7]} 10. a4 {[%clk 0:04:19.5]} 10... c6 {[%clk 0:04:43.4]} 11. Qc2 {[%clk
0:04:05.8]} 11... Nd5 {[%clk 0:04:19.9]} 12. axb5 {[%clk 0:03:53.4]} 12... cxb5
{[%clk 0:04:18.3]} 13. b3 {[%clk 0:03:44.7]} 13... c3 {[%clk 0:04:14.4]} 14. Ne4
{[%clk 0:03:39.1]} 14... b4 {[%clk 0:04:12.3]} 15. Nc5 {[%clk 0:03:36.1]} 15...
Nd7 {[%clk 0:04:10.7]} 16. e4 {[%clk 0:03:24.1]} 16... Nc7 {[%clk 0:03:48.7]}
17. Nd3 {[%clk 0:03:14.9]} 17... Nb5 {[%clk 0:03:40.6]} 18. h4 {[%clk
0:03:08.1]} 18... Nb6 {[%clk 0:03:37.4]} 19. d5 {[%clk 0:02:46.6]} 19... exd5
{[%clk 0:03:35.6]} 20. exd5 {[%clk 0:02:44.3]} 20... Bf5 {[%clk 0:03:34.2]} 21.
h5 {[%clk 0:02:19.9]} 21... Qxd5 {[%clk 0:03:23.5]} 22. Nfe5 {[%clk 0:02:08.5]}
22... Bxd3 {[%clk 0:03:05.6]} 23. Nxd3 {[%clk 0:02:06.6]} 23... Nd4 {[%clk
0:03:01.1]} 24. Qd1 {[%clk 0:01:59.3]} 24... Qxb3 {[%clk 0:02:51.5]} 25. Qg4
{[%clk 0:01:54.4]} 25... Ne6 {[%clk 0:02:36]} 26. Bxa8 {[%clk 0:01:48.4]} 26...
Rxa8 {[%clk 0:02:35.9]} 27. h6 {[%clk 0:01:47.6]} 27... Qc4 {[%clk 0:02:33.9]}
28. Nf4 {[%clk 0:01:44.9]} 28... g6 {[%clk 0:02:22.7]} 29. Rfe1 {[%clk
0:01:38.4]} 29... Nxf4 {[%clk 0:02:20.8]} 30. gxf4 {[%clk 0:01:35.5]} 30... b3
{[%clk 0:02:10.4]} 31. Qf3 {[%clk 0:01:34.5]} 31... Rf8 {[%clk 0:02:06.3]} 32.
Qb7 {[%clk 0:01:21.5]} 32... b2 {[%clk 0:01:35.1]} 33. Qxb6 {[%clk 0:01:17.2]}
33... bxa1=Q {[%clk 0:01:33.8]} 34. Rxa1 {[%clk 0:01:16.3]} 34... Qxf4 {[%clk
0:01:29.3]} 35. Qxa5 {[%clk 0:01:14.2]} 35... Qxh6 {[%clk 0:01:00.5]} 36. Qxc3
{[%clk 0:01:13]} 36... Qg5+ {[%clk 0:00:59.4]} 37. Kf1 {[%clk 0:01:07.2]} 37...
Re8 {[%clk 0:00:56.9]} 38. Rd1 {[%clk 0:01:05.5]} 38... Qe5 {[%clk 0:00:54.2]}
39. Qf3 {[%clk 0:01:00]} 39... Qb5+ {[%clk 0:00:52.1]} 40. Kg2 {[%clk
0:00:58.6]} 40... Qg5+ {[%clk 0:00:50.1]} 41. Kf1 {[%clk 0:00:56.8]} 41... Re6
{[%clk 0:00:46.6]} 42. Qa8+ {[%clk 0:00:48.6]} 42... Kg7 {[%clk 0:00:45.6]} 43.
Qa1+ {[%clk 0:00:48.1]} 43... Qf6 {[%clk 0:00:44.3]} 44. Qa2 {[%clk 0:00:44]}
44... h5 {[%clk 0:00:42]} 45. Qd2 {[%clk 0:00:41.9]} 45... Qh4 {[%clk
0:00:37.5]} 46. Qc3+ {[%clk 0:00:39.2]} 46... Rf6 {[%clk 0:00:31]} 47. Rd2
{[%clk 0:00:37.2]} 47... Qh1+ {[%clk 0:00:28.5]} 48. Ke2 {[%clk 0:00:36.4]}
48... Qe4+ {[%clk 0:00:27.3]} 49. Kd1 {[%clk 0:00:33.6]} 49... Qb1+ {[%clk
0:00:23.6]} 50. Ke2 {[%clk 0:00:32.8]} 50... Qe4+ {[%clk 0:00:20.2]} 51. Kd1
{[%clk 0:00:32]} 51... Qf3+ {[%clk 0:00:18.7]} 52. Qxf3 {[%clk 0:00:30]} 52...
Rxf3 {[%clk 0:00:18.6]} 53. Ke2 {[%clk 0:00:29.6]} 53... Rf5 {[%clk 0:00:17.5]}
54. Kf1 {[%clk 0:00:28.3]} 54... f6 {[%clk 0:00:17]} 55. Kg2 {[%clk 0:00:27.9]}
55... Kh6 {[%clk 0:00:16.9]} 56. Rd4 {[%clk 0:00:27.1]} 56... h4 {[%clk
0:00:16.2]} 57. Rxh4+ {[%clk 0:00:25.1]} 57... Kg5 {[%clk 0:00:15.4]} 58. Rc4
{[%clk 0:00:24.7]} 58... Rf4 {[%clk 0:00:14.3]} 59. Rc5+ {[%clk 0:00:23.7]}
59... f5 {[%clk 0:00:13.3]} 60. Rc3 {[%clk 0:00:23.4]} 60... Rg4+ {[%clk
0:00:12.4]} 61. Kf3 {[%clk 0:00:22.5]} 61... Rf4+ {[%clk 0:00:11.5]} 62. Kg3
{[%clk 0:00:21.6]} 62... Rg4+ {[%clk 0:00:11]} 63. Kf3 {[%clk 0:00:20.8]} 63...
Rh4 {[%clk 0:00:10.4]} 64. Rc8 {[%clk 0:00:19]} 64... Rh3+ {[%clk 0:00:09.4]}
65. Kg2 {[%clk 0:00:18.4]} 65... Rh4 {[%clk 0:00:08]} 66. Rc7 {[%clk 0:00:17.4]}
66... Rg4+ {[%clk 0:00:07.4]} 67. Kf3 {[%clk 0:00:16.1]} 67... Rf4+ {[%clk
0:00:07]} 68. Kg3 {[%clk 0:00:15.5]} 68... Rg4+ {[%clk 0:00:06.7]} 69. Kf3
{[%clk 0:00:14.9]} 69... Rf4+ {[%clk 0:00:06.4]} 70. Kg2 {[%clk 0:00:14.3]}
70... Rg4+ {[%clk 0:00:06.1]} 71. Kf1 {[%clk 0:00:13.6]} 71... Rf4 {[%clk
0:00:05.7]} 72. Ke2 {[%clk 0:00:12.5]} 72... Rg4 {[%clk 0:00:04.5]} 73. Rc3
{[%clk 0:00:10.8]} 73... Ra4 {[%clk 0:00:04]} 74. Rg3+ {[%clk 0:00:09.8]} 74...
Kf6 {[%clk 0:00:03.1]} 75. Re3 {[%clk 0:00:08.9]} 75... Ra2+ {[%clk 0:00:03]}
76. Kf1 {[%clk 0:00:08.4]} 76... Ra4 {[%clk 0:00:02.9]} 77. Kg2 {[%clk
0:00:07.5]} 77... Rf4 {[%clk 0:00:02.8]} 78. Rd3 {[%clk 0:00:06.8]} 78... Kg5
{[%clk 0:00:02.7]} 79. Rd2 {[%clk 0:00:06.3]} 79... Kh5 {[%clk 0:00:02.3]} 80.
Rd3 {[%clk 0:00:05.6]} 80... Rg4+ {[%clk 0:00:02.2]} 81. Kh2 {[%clk 0:00:04.5]}
81... Rg5 {[%clk 0:00:02.1]} 82. Rh3+ {[%clk 0:00:03.5]} 82... Kg4 {[%clk
0:00:02]} 83. Rg3+ {[%clk 0:00:03.4]} 83... Kf4 {[%clk 0:00:01.7]} 84. Re3
{[%clk 0:00:02.7]} 84... Rg4 {[%clk 0:00:00.6]} 85. Rh3 {[%clk 0:00:02.3]} 85...
Rh4 {[%clk 0:00:00.5]} 86. Rxh4+ {[%clk 0:00:01.6]} 86... Kg5 {[%clk 0:00:00.4]}
87. Rh3 {[%clk 0:00:01.1]} 87... Kf6 {[%clk 0:00:00.3]} 88. Rg3 {[%clk
0:00:00.9]} 88... g5 {[%clk 0:00:00.2]} 89. Rg4 {[%clk 0:00:00.5]} 89... Ke5
{[%clk 0:00:00.1]} 90. Rxg5 {[%clk 0:00:00.4]} 1-0

[Event "Live Chess"]
[Site "Chess.com"]
[Date "2023.05.21"]
[Round "-"]
[White "JanMur7"]
[Black "domrobson"]
[Result "1-0"]
[WhiteElo "1960"]
[BlackElo "1699"]
[TimeControl "300"]
[EndTime "2:41:57 PDT"]
[Termination "JanMur7 won by resignation"]

1. e4 {[%clk 0:04:57.2]} 1... e5 {[%clk 0:04:59.6]} 2. Nf3 {[%clk 0:04:56.3]}
2... Nc6 {[%clk 0:04:58.9]} 3. Nc3 {[%clk 0:04:55.7]} 3... Nf6 {[%clk
0:04:58.1]} 4. Nxe5 {[%clk 0:04:55.1]} 4... Nxe5 {[%clk 0:04:56.6]} 5. d4 {[%clk
0:04:54.3]} 5... Ng6 {[%clk 0:04:56]} 6. e5 {[%clk 0:04:53.7]} 6... Ng8 {[%clk
0:04:54.8]} 7. Bc4 {[%clk 0:04:53.3]} 7... d6 {[%clk 0:04:53.1]} 8. Qf3 {[%clk
0:04:52.7]} 8... Be6 {[%clk 0:04:52.3]} 9. Qxb7 {[%clk 0:04:52.2]} 9... Bxc4
{[%clk 0:04:41.1]} 10. Qc6+ {[%clk 0:04:50.8]} 10... Ke7 {[%clk 0:04:37.8]} 11.
Qxc4 {[%clk 0:04:50.3]} 11... Qd7 {[%clk 0:04:34.3]} 12. exd6+ {[%clk
0:04:30.5]} 12... cxd6 {[%clk 0:04:22.1]} 13. O-O {[%clk 0:04:27.5]} 13... Nf6
{[%clk 0:04:18.7]} 14. Bg5 {[%clk 0:04:13.4]} 14... Kd8 {[%clk 0:04:14]} 15. Qd5
{[%clk 0:03:57.6]} 15... Rc8 {[%clk 0:04:08.2]} 16. Ne4 {[%clk 0:03:22.9]} 16...
Ne7 {[%clk 0:03:58.2]} 17. Bxf6 {[%clk 0:03:09.1]} 17... gxf6 {[%clk 0:03:55]}
18. Qxf7 {[%clk 0:03:07.8]} 18... Qe8 {[%clk 0:03:45.7]} 19. Qxe8+ {[%clk
0:03:04.7]} 19... Kxe8 {[%clk 0:03:43.5]} 20. Nxd6+ {[%clk 0:03:03.8]} 20... Kd7
{[%clk 0:03:43.4]} 21. Nxc8 {[%clk 0:03:02.7]} 21... Kxc8 {[%clk 0:03:43.1]} 1-0

[Event "Live Chess"]
[Site "Chess.com"]
[Date "2023.05.21"]
[Round "-"]
[White "Pandreq"]
[Black "TheSmoulderingMaster"]
[Result "0-1"]
[WhiteElo "1234"]
[BlackElo "1722"]
[TimeControl "300"]
[EndTime "2:42:01 PDT"]
[Termination "TheSmoulderingMaster won by resignation"]

1. d4 {[%clk 0:04:57.9]} 1... Nf6 {[%clk 0:04:58.6]} 2. c4 {[%clk 0:04:56.8]}
2... d6 {[%clk 0:04:58.1]} 3. Nc3 {[%clk 0:04:55.6]} 3... g6 {[%clk 0:04:57.6]}
4. Bf4 {[%clk 0:04:54]} 4... Bg7 {[%clk 0:04:56.9]} 5. e3 {[%clk 0:04:52.3]}
5... O-O {[%clk 0:04:56.2]} 6. Bd3 {[%clk 0:04:46.1]} 6... c6 {[%clk 0:04:55.7]}
7. Nf3 {[%clk 0:04:43.7]} 7... Qb6 {[%clk 0:04:54.8]} 8. b3 {[%clk 0:04:39.7]}
8... Nbd7 {[%clk 0:04:54]} 9. Ne4 {[%clk 0:04:30.3]} 9... Nh5 {[%clk 0:04:51.8]}
10. Bg3 {[%clk 0:04:22]} 10... Nxg3 {[%clk 0:04:49.9]} 11. Nxg3 {[%clk
0:04:21.1]} 11... e5 {[%clk 0:04:49.8]} 12. dxe5 {[%clk 0:04:13.7]} 12... dxe5
{[%clk 0:04:46.6]} 13. Ne4 {[%clk 0:04:04]} 13... Nc5 {[%clk 0:04:42.7]} 14. O-O
{[%clk 0:03:52.9]} 14... Rd8 {[%clk 0:04:38.4]} 15. Nxc5 {[%clk 0:03:42.9]}
15... Qxc5 {[%clk 0:04:36.8]} 16. e4 {[%clk 0:03:30.6]} 16... Bg4 {[%clk
0:04:34.5]} 17. Qe2 {[%clk 0:03:24.1]} 17... Rd7 {[%clk 0:04:30.7]} 18. Rad1
{[%clk 0:03:21.1]} 18... Rad8 {[%clk 0:04:29]} 19. Rd2 {[%clk 0:03:19.1]} 19...
Bh6 {[%clk 0:04:10.9]} 20. h3 {[%clk 0:02:56.6]} 20... Bxf3 {[%clk 0:04:07]} 21.
Qxf3 {[%clk 0:02:51.7]} 21... Bxd2 {[%clk 0:04:06.1]} 22. Rd1 {[%clk 0:02:42.3]}
22... Bf4 {[%clk 0:04:04.6]} 23. Bc2 {[%clk 0:02:38.8]} 23... Rxd1+ {[%clk
0:04:02.3]} 24. Bxd1 {[%clk 0:02:38.3]} 24... Qd4 {[%clk 0:04:00.3]} 25. g3
{[%clk 0:02:34.3]} 25... Qxd1+ {[%clk 0:03:58.1]} 26. Kg2 {[%clk 0:02:31.6]}
26... Qxf3+ {[%clk 0:03:54.4]} 27. Kxf3 {[%clk 0:02:31.5]} 27... Bc1 {[%clk
0:03:50.4]} 0-1

[Event "Live Chess"]
[Site "Chess.com"]
[Date "2023.05.21"]
[Round "-"]
[White "WombatIn_A_Box"]
[Black "Delacorta"]
[Result "0-1"]
[WhiteElo "555"]
[BlackElo "1398"]
[TimeControl "300"]
[EndTime "2:42:04 PDT"]
[Termination "Delacorta won by checkmate"]

1. Nf3 {[%clk 0:04:57.5]} 1... e6 {[%clk 0:04:58.6]} 2. e4 {[%clk 0:04:56.5]}
2... d5 {[%clk 0:04:56.6]} 3. Nc3 {[%clk 0:04:51.1]} 3... Nf6 {[%clk 0:04:53]}
4. d3 {[%clk 0:04:50.5]} 4... Bb4 {[%clk 0:04:45.8]} 5. a3 {[%clk 0:04:48.6]}
5... Bxc3+ {[%clk 0:04:40.4]} 6. bxc3 {[%clk 0:04:47.9]} 6... dxe4 {[%clk
0:04:39.7]} 7. dxe4 {[%clk 0:04:46.4]} 7... Qxd1+ {[%clk 0:04:37.9]} 8. Kxd1
{[%clk 0:04:43.8]} 8... Nxe4 {[%clk 0:04:37.2]} 9. Be3 {[%clk 0:04:39.6]} 9...
Nxc3+ {[%clk 0:04:35.3]} 10. Kd2 {[%clk 0:04:36.2]} 10... Ne4+ {[%clk
0:04:29.6]} 11. Kd3 {[%clk 0:04:32.5]} 11... Nf6 {[%clk 0:04:24.7]} 12. Kd2
{[%clk 0:04:27.2]} 12... O-O {[%clk 0:04:23.3]} 13. Bc4 {[%clk 0:04:23.7]} 13...
Rd8+ {[%clk 0:04:21.6]} 14. Ke2 {[%clk 0:04:20.8]} 14... b6 {[%clk 0:04:20]} 15.
Rhd1 {[%clk 0:04:18.3]} 15... Rxd1 {[%clk 0:03:52.8]} 16. Rxd1 {[%clk
0:04:16.4]} 16... Nc6 {[%clk 0:03:49]} 17. Bb5 {[%clk 0:04:10.7]} 17... Bb7
{[%clk 0:03:47.3]} 18. Bxc6 {[%clk 0:04:09.2]} 18... Bxc6 {[%clk 0:03:46.5]} 19.
Nd4 {[%clk 0:04:03.2]} 19... Bb7 {[%clk 0:03:39.8]} 20. Nb5 {[%clk 0:04:00.1]}
20... Ba6 {[%clk 0:03:28]} 21. c4 {[%clk 0:03:53.6]} 21... Bxb5 {[%clk
0:03:11.8]} 22. cxb5 {[%clk 0:03:51.9]} 22... Ne4 {[%clk 0:03:10.3]} 23. Rd7
{[%clk 0:03:45.2]} 23... Nc3+ {[%clk 0:03:06.6]} 24. Kd3 {[%clk 0:03:43.1]}
24... Nxb5 {[%clk 0:03:05.5]} 25. a4 {[%clk 0:03:36.4]} 25... Nd6 {[%clk
0:02:37.8]} 26. Rxc7 {[%clk 0:03:29.4]} 26... b5 {[%clk 0:02:17.7]} 27. axb5
{[%clk 0:03:18.2]} 27... Nxb5 {[%clk 0:02:16]} 28. Rb7 {[%clk 0:03:10.7]} 28...
Nd6 {[%clk 0:02:05.3]} 29. Rd7 {[%clk 0:02:56]} 29... Nf5 {[%clk 0:01:53.9]} 30.
Bxa7 {[%clk 0:02:53.1]} 30... f6 {[%clk 0:01:49.6]} 31. g4 {[%clk 0:02:45.1]}
31... Nh4 {[%clk 0:01:44.5]} 32. f4 {[%clk 0:02:39.3]} 32... Ng6 {[%clk
0:01:42.7]} 33. f5 {[%clk 0:02:37.5]} 33... exf5 {[%clk 0:01:41.2]} 34. gxf5
{[%clk 0:02:36.5]} 34... Nf4+ {[%clk 0:01:40.5]} 35. Ke4 {[%clk 0:02:34.7]}
35... Ng2 {[%clk 0:01:32]} 36. Kd5 {[%clk 0:02:05.7]} 36... Nf4+ {[%clk
0:01:25.9]} 37. Kd6 {[%clk 0:02:03.7]} 37... Nd3 {[%clk 0:01:18]} 38. Ke7 {[%clk
0:01:59.3]} 38... Ne5 {[%clk 0:01:11.9]} 39. Rd8+ {[%clk 0:01:50.6]} 39... Rxd8
{[%clk 0:01:09]} 40. Kxd8 {[%clk 0:01:49.6]} 40... Nc6+ {[%clk 0:01:08.2]} 41.
Kd7 {[%clk 0:01:44]} 41... Nxa7 {[%clk 0:01:07.1]} 42. Ke6 {[%clk 0:01:42.7]}
42... Nb5 {[%clk 0:01:05.9]} 43. h4 {[%clk 0:01:38.9]} 43... Nd4+ {[%clk
0:01:04.7]} 44. Kd5 {[%clk 0:01:37.3]} 44... Nxf5 {[%clk 0:01:03.8]} 45. h5
{[%clk 0:01:35.8]} 45... Ng3 {[%clk 0:01:02.2]} 46. Ke6 {[%clk 0:01:33.3]} 46...
Nxh5 {[%clk 0:01:00.4]} 47. Kf5 {[%clk 0:01:32]} 47... Kf7 {[%clk 0:00:58.9]}
48. Kg4 {[%clk 0:01:30.4]} 48... g6 {[%clk 0:00:58.1]} 49. Kh4 {[%clk
0:01:28.2]} 49... Ke6 {[%clk 0:00:56.8]} 50. Kh3 {[%clk 0:01:26.6]} 50... Ke5
{[%clk 0:00:56]} 51. Kh4 {[%clk 0:01:25.8]} 51... Ke4 {[%clk 0:00:55.1]} 52. Kh3
{[%clk 0:01:25.1]} 52... f5 {[%clk 0:00:54.5]} 53. Kh4 {[%clk 0:01:24.9]} 53...
f4 {[%clk 0:00:53.8]} 54. Kg4 {[%clk 0:01:23.7]} 54... Ke3 {[%clk 0:00:53.1]}
55. Kh3 {[%clk 0:01:18.9]} 55... f3 {[%clk 0:00:52.1]} 56. Kh4 {[%clk
0:01:14.3]} 56... f2 {[%clk 0:00:50.9]} 57. Kg5 {[%clk 0:01:13.4]} 57... f1=Q
{[%clk 0:00:48]} 58. Kh6 {[%clk 0:01:12.6]} 58... Qf4+ {[%clk 0:00:46.2]} 59.
Kxh7 {[%clk 0:01:11.9]} 59... Qf7+ {[%clk 0:00:42.3]} 60. Kh6 {[%clk 0:01:10.6]}
60... Qf4+ {[%clk 0:00:30.2]} 61. Kh7 {[%clk 0:01:07.1]} 61... g5 {[%clk
0:00:28]} 62. Kh6 {[%clk 0:01:05.7]} 62... g4+ {[%clk 0:00:27.3]} 63. Kxh5
{[%clk 0:01:04.5]} 63... g3 {[%clk 0:00:26.7]} 64. Kg6 {[%clk 0:01:02.8]} 64...
g2 {[%clk 0:00:25.7]} 65. Kg7 {[%clk 0:01:01]} 65... g1=Q+ {[%clk 0:00:24.5]}
66. Kh7 {[%clk 0:00:58.7]} 66... Qh4# {[%clk 0:00:23.5]} 0-1

[Event "Live Chess"]
[Site "Chess.com"]
[Date "2023.05.21"]
[Round "-"]
[White "Denz14"]
[Black "Long1968"]
[Result "1-0"]
[WhiteElo "1047"]
[BlackElo "961"]
[TimeControl "300"]
[EndTime "2:42:17 PDT"]
[Termination "Denz14 won on time"]

1. d4 {[%clk 0:04:57]} 1... e6 {[%clk 0:04:57.5]} 2. Bf4 {[%clk 0:04:55.8]} 2...
c5 {[%clk 0:04:53.8]} 3. e3 {[%clk 0:04:52.9]} 3... Nc6 {[%clk 0:04:51]} 4. c3
{[%clk 0:04:52]} 4... cxd4 {[%clk 0:04:47.8]} 5. exd4 {[%clk 0:04:51]} 5... g5
{[%clk 0:04:40.6]} 6. Bg3 {[%clk 0:04:49.3]} 6... Bg7 {[%clk 0:04:36]} 7. Nf3
{[%clk 0:04:46.2]} 7... h6 {[%clk 0:04:27.5]} 8. Bd3 {[%clk 0:04:44.3]} 8...
Nge7 {[%clk 0:04:19.1]} 9. Na3 {[%clk 0:04:42.2]} 9... a6 {[%clk 0:04:11.4]} 10.
O-O {[%clk 0:04:38.2]} 10... O-O {[%clk 0:04:05.4]} 11. Bb1 {[%clk 0:04:33.9]}
11... Nf5 {[%clk 0:03:30.6]} 12. Be5 {[%clk 0:04:29.1]} 12... Nxe5 {[%clk
0:03:24.6]} 13. Nxe5 {[%clk 0:04:26.9]} 13... Bxe5 {[%clk 0:03:21.8]} 14. dxe5
{[%clk 0:04:25.1]} 14... b5 {[%clk 0:03:11.4]} 15. Qd3 {[%clk 0:04:23]} 15... h5
{[%clk 0:02:47.8]} 16. h3 {[%clk 0:04:14.3]} 16... Qc7 {[%clk 0:01:50]} 17. g4
{[%clk 0:04:07.1]} 17... hxg4 {[%clk 0:01:39.8]} 18. hxg4 {[%clk 0:04:05.6]}
18... Qxe5 {[%clk 0:01:37.3]} 19. gxf5 {[%clk 0:04:01.8]} 19... exf5 {[%clk
0:01:30.3]} 20. Qxf5 {[%clk 0:03:59.7]} 20... Qxf5 {[%clk 0:01:25.4]} 21. Bxf5
{[%clk 0:03:58.1]} 21... d5 {[%clk 0:01:20.7]} 22. Bxc8 {[%clk 0:03:56.5]} 22...
Raxc8 {[%clk 0:01:17]} 23. Nc2 {[%clk 0:03:53.2]} 23... a5 {[%clk 0:01:12.6]}
24. Rae1 {[%clk 0:03:51.1]} 24... Rfd8 {[%clk 0:00:54.6]} 25. Nd4 {[%clk
0:03:48.5]} 25... b4 {[%clk 0:00:43.3]} 26. cxb4 {[%clk 0:03:41.4]} 26... axb4
{[%clk 0:00:39.5]} 27. Re5 {[%clk 0:03:39.6]} 27... f6 {[%clk 0:00:29.7]} 28.
Rf5 {[%clk 0:03:28]} 28... Kg7 {[%clk 0:00:26]} 29. Ne6+ {[%clk 0:03:25.7]}
29... Kg6 {[%clk 0:00:23.2]} 30. Rxf6+ {[%clk 0:03:19.9]} 30... Kxf6 {[%clk
0:00:20]} 31. Nxd8 {[%clk 0:03:18.6]} 31... Rxd8 {[%clk 0:00:18.1]} 32. Rd1
{[%clk 0:03:17.1]} 32... d4 {[%clk 0:00:15.4]} 33. Kf1 {[%clk 0:03:14.6]} 33...
Ke5 {[%clk 0:00:13.1]} 34. Ke2 {[%clk 0:03:13.9]} 34... Ke4 {[%clk 0:00:10.9]}
35. Rd3 {[%clk 0:03:10.8]} 35... g4 {[%clk 0:00:03.9]} 36. b3 {[%clk 0:03:01.8]}
1-0